{"text_format":"3","workbook":"xlsx","n_sheets":1,"sheets":["KOSZTY PRZEPROJEKTOWANIA"],"not_rendered":{"images":2,"defined_names":4},"read":"whole","date_system":"1900"}

{"sheet":"KOSZTY PRZEPROJEKTOWANIA","index":0,"n_rows":28,"n_cols":8,"rows_kept":28,"merged":[[25,1,25,5],[26,1,26,5],[27,1,27,5]]}
[null,"ARKUSZ KOSZTÓW PRZEPROJEKTOWANIA KUCHNI"]
[]
[null,"Kategoria","Artykuły","Ilość","Koszt szacowany","Koszt rzeczywisty","Suma kosztów szacowanych","Suma kosztów rzeczywistych"]
[null,"Szafki","Szafki podłogowe: Modularne standardowe (wartość w kolumnie Ilość w cm)",25,{"v":5,"d":"5.00 zł"},null,{"$f":"Dane[[#This Row],[Ilość]]*Dane[[#This Row],[Koszt szacowany]]","v":{"v":125,"d":"125 zł"}},{"$f":"Dane[[#This Row],[Ilość]]*Dane[[#This Row],[Koszt rzeczywisty]]","v":{"v":0,"d":"0 zł"}}]
[null,"Szafki","Szafki wiszące: Modularne standardowe (wartość w kolumnie Ilość w cm)",25,{"v":3.5,"d":"3.50 zł"},null,{"$f":"Dane[[#This Row],[Ilość]]*Dane[[#This Row],[Koszt szacowany]]","v":{"v":87.5,"d":"88 zł"}},{"$f":"Dane[[#This Row],[Ilość]]*Dane[[#This Row],[Koszt rzeczywisty]]","v":{"v":0,"d":"0 zł"}}]
[null,"Urządzenia do czyszczenia","Zmywarka do naczyń: Standardowa",1,{"v":250,"d":"250.00 zł"},null,{"$f":"Dane[[#This Row],[Ilość]]*Dane[[#This Row],[Koszt szacowany]]","v":{"v":250,"d":"250 zł"}},{"$f":"Dane[[#This Row],[Ilość]]*Dane[[#This Row],[Koszt rzeczywisty]]","v":{"v":0,"d":"0 zł"}}]
[null,"Urządzenia do czyszczenia","Pojemnik na śmieci: Standardowy",1,{"v":175,"d":"175.00 zł"},null,{"$f":"Dane[[#This Row],[Ilość]]*Dane[[#This Row],[Koszt szacowany]]","v":{"v":175,"d":"175 zł"}},{"$f":"Dane[[#This Row],[Ilość]]*Dane[[#This Row],[Koszt rzeczywisty]]","v":{"v":0,"d":"0 zł"}}]
[null,"Urządzenia do gotowania","Kuchenka: Standardowa wsuwana",1,{"v":375,"d":"375.00 zł"},null,{"$f":"Dane[[#This Row],[Ilość]]*Dane[[#This Row],[Koszt szacowany]]","v":{"v":375,"d":"375 zł"}},{"$f":"Dane[[#This Row],[Ilość]]*Dane[[#This Row],[Koszt rzeczywisty]]","v":{"v":0,"d":"0 zł"}}]
[null,"Urządzenia do gotowania","Kuchenka mikrofalowa: Standardowa",1,{"v":300,"d":"300.00 zł"},null,{"$f":"Dane[[#This Row],[Ilość]]*Dane[[#This Row],[Koszt szacowany]]","v":{"v":300,"d":"300 zł"}},{"$f":"Dane[[#This Row],[Ilość]]*Dane[[#This Row],[Koszt rzeczywisty]]","v":{"v":0,"d":"0 zł"}}]
[null,"Lady kuchenne","Blat kuchenny (wartość w kolumnie Ilość w cm)",23,{"v":10,"d":"10.00 zł"},null,{"$f":"Dane[[#This Row],[Ilość]]*Dane[[#This Row],[Koszt szacowany]]","v":{"v":230,"d":"230 zł"}},{"$f":"Dane[[#This Row],[Ilość]]*Dane[[#This Row],[Koszt rzeczywisty]]","v":{"v":0,"d":"0 zł"}}]
[null,"Drzwi","Wykończenie wnętrza: Deska z okleiną",1,{"v":65,"d":"65.00 zł"},null,{"$f":"Dane[[#This Row],[Ilość]]*Dane[[#This Row],[Koszt szacowany]]","v":{"v":65,"d":"65 zł"}},{"$f":"Dane[[#This Row],[Ilość]]*Dane[[#This Row],[Koszt rzeczywisty]]","v":{"v":0,"d":"0 zł"}}]
[null,"Dodatki","Dodatki: Standardowy bojler z wrzątkiem",1,{"v":120,"d":"120.00 zł"},null,{"$f":"Dane[[#This Row],[Ilość]]*Dane[[#This Row],[Koszt szacowany]]","v":{"v":120,"d":"120 zł"}},{"$f":"Dane[[#This Row],[Ilość]]*Dane[[#This Row],[Koszt rzeczywisty]]","v":{"v":0,"d":"0 zł"}}]
[null,"Dodatki","Dodatki: Dozownik mydła",1,{"v":40,"d":"40.00 zł"},null,{"$f":"Dane[[#This Row],[Ilość]]*Dane[[#This Row],[Koszt szacowany]]","v":{"v":40,"d":"40 zł"}},{"$f":"Dane[[#This Row],[Ilość]]*Dane[[#This Row],[Koszt rzeczywisty]]","v":{"v":0,"d":"0 zł"}}]
[null,"Krany","Kran: Z dźwignią, standardowy",1,{"v":130,"d":"130.00 zł"},null,{"$f":"Dane[[#This Row],[Ilość]]*Dane[[#This Row],[Koszt szacowany]]","v":{"v":130,"d":"130 zł"}},{"$f":"Dane[[#This Row],[Ilość]]*Dane[[#This Row],[Koszt rzeczywisty]]","v":{"v":0,"d":"0 zł"}}]
[null,"Podłogi","Panele (wartość w kolumnie Ilość w cm kwadratowych)",165,{"v":3.5,"d":"3.50 zł"},null,{"$f":"Dane[[#This Row],[Ilość]]*Dane[[#This Row],[Koszt szacowany]]","v":{"v":577.5,"d":"578 zł"}},{"$f":"Dane[[#This Row],[Ilość]]*Dane[[#This Row],[Koszt rzeczywisty]]","v":{"v":0,"d":"0 zł"}}]
[null,"Urządzenia do prania","Pralka: Standardowa",1,{"v":500,"d":"500.00 zł"},null,{"$f":"Dane[[#This Row],[Ilość]]*Dane[[#This Row],[Koszt szacowany]]","v":{"v":500,"d":"500 zł"}},{"$f":"Dane[[#This Row],[Ilość]]*Dane[[#This Row],[Koszt rzeczywisty]]","v":{"v":0,"d":"0 zł"}}]
[null,"Urządzenia do prania","Suszarka: Standardowa",1,{"v":375,"d":"375.00 zł"},null,{"$f":"Dane[[#This Row],[Ilość]]*Dane[[#This Row],[Koszt szacowany]]","v":{"v":375,"d":"375 zł"}},{"$f":"Dane[[#This Row],[Ilość]]*Dane[[#This Row],[Koszt rzeczywisty]]","v":{"v":0,"d":"0 zł"}}]
[null,"Oświetlenie","Oświetlenie: Oczko sufitowe",4,{"v":35,"d":"35.00 zł"},null,{"$f":"Dane[[#This Row],[Ilość]]*Dane[[#This Row],[Koszt szacowany]]","v":{"v":140,"d":"140 zł"}},{"$f":"Dane[[#This Row],[Ilość]]*Dane[[#This Row],[Koszt rzeczywisty]]","v":{"v":0,"d":"0 zł"}}]
[null,"Lodówki","Lodówka: Wolnostojąca",1,{"v":1200,"d":"1,200.00 zł"},null,{"$f":"Dane[[#This Row],[Ilość]]*Dane[[#This Row],[Koszt szacowany]]","v":{"v":1200,"d":"1,200 zł"}},{"$f":"Dane[[#This Row],[Ilość]]*Dane[[#This Row],[Koszt rzeczywisty]]","v":{"v":0,"d":"0 zł"}}]
[null,"Zlewy","Dwukomorowa ze stali nierdzewnej",1,{"v":125,"d":"125.00 zł"},null,{"$f":"Dane[[#This Row],[Ilość]]*Dane[[#This Row],[Koszt szacowany]]","v":{"v":125,"d":"125 zł"}},{"$f":"Dane[[#This Row],[Ilość]]*Dane[[#This Row],[Koszt rzeczywisty]]","v":{"v":0,"d":"0 zł"}}]
[null,"Wentylacja","Okap kuchenny: Standardowy",1,{"v":180,"d":"180.00 zł"},null,{"$f":"Dane[[#This Row],[Ilość]]*Dane[[#This Row],[Koszt szacowany]]","v":{"v":180,"d":"180 zł"}},{"$f":"Dane[[#This Row],[Ilość]]*Dane[[#This Row],[Koszt rzeczywisty]]","v":{"v":0,"d":"0 zł"}}]
[null,"Ścianki","Płyta ścienna (wartość w kolumnie ilość w metrach kwadratowych)",70,{"v":2,"d":"2.00 zł"},null,{"$f":"Dane[[#This Row],[Ilość]]*Dane[[#This Row],[Koszt szacowany]]","v":{"v":140,"d":"140 zł"}},{"$f":"Dane[[#This Row],[Ilość]]*Dane[[#This Row],[Koszt rzeczywisty]]","v":{"v":0,"d":"0 zł"}}]
[null,"Okna","Blat rozsuwany",2,{"v":120,"d":"120.00 zł"},null,{"$f":"Dane[[#This Row],[Ilość]]*Dane[[#This Row],[Koszt szacowany]]","v":{"v":240,"d":"240 zł"}},{"$f":"Dane[[#This Row],[Ilość]]*Dane[[#This Row],[Koszt rzeczywisty]]","v":{"v":0,"d":"0 zł"}}]
[null,"Inne",{"$nulls":4},{"$f":"Dane[[#This Row],[Ilość]]*Dane[[#This Row],[Koszt szacowany]]","v":{"v":0,"d":"0 zł"}},{"$f":"Dane[[#This Row],[Ilość]]*Dane[[#This Row],[Koszt rzeczywisty]]","v":{"v":0,"d":"0 zł"}}]
[null,"Suma",null,null,{"$f":"SUBTOTAL(109,Dane[Koszt szacowany])","v":{"v":4014,"d":"4,014.00 zł"}},{"$f":"SUBTOTAL(109,Dane[Koszt rzeczywisty])","v":{"v":0,"d":"0.00 zł"}},{"$f":"SUBTOTAL(109,Dane[Suma kosztów szacowanych])","v":{"v":5375,"d":"5,375.00 zł"}},{"$f":"SUBTOTAL(109,Dane[Suma kosztów rzeczywistych])","v":{"v":0,"d":"0.00 zł"}}]
[null,"Suma częściowa",{"$nulls":4},{"$f":"SUBTOTAL(109,Dane[Suma kosztów szacowanych])","v":{"v":5375,"d":"5,375.00 zł"}},{"$f":"SUBTOTAL(109,Dane[Suma kosztów rzeczywistych])","v":{"v":0,"d":"0.00 zł"}}]
[null,"Nieoczekiwane koszty — dodaj 30%",{"$nulls":4},{"$f":"G26*0.3","v":{"v":1612.5,"d":"1,612.50 zł"}},{"$f":"H26*0.3","v":{"v":0,"d":"0.00 zł"}}]
[null,"Suma",{"$nulls":4},{"$f":"SUM(G26:G27)","v":{"v":6987.5,"d":"6,987.50 zł"}},{"$f":"SUM(H26:H27)","v":{"v":0,"d":"0.00 zł"}}]